[Event "FIDE WYCC 2016 U16 girls"]
[Site "Khanty Mansiysk"]
[Date "2016.09.22"]
[Round "1.2"]
[White "Tishova, Svetlana"]
[Black "Yakubbaeva, Nilufar"]
[Result "0-1"]
[ECO "B18"]
[WhiteElo "2317"]
[BlackElo "1896"]
[Annotator "Reinhold Goldau"]
[PlyCount "50"]
[EventDate "2016.09.??"]
[EventType "swiss"]
[EventRounds "11"]
[EventCountry "RUS"]
[SourceTitle "Youth Database"]
[Source "CBase R.Goldau"]
[SourceDate "2000.03.01"]
[TimeControl "40/5400+30:1800+30"]

1. e4 {[%emt 0:00:00]} c6 {[%emt 0:00:00]} 2. d4 {[%emt 0:00:00]} d5 {[%emt 0:
00:00]} 3. Nc3 {[%emt 0:00:00]} dxe4 {[%emt 0:00:05]} 4. Nxe4 {[%emt 0:00:00]}
Bf5 {[%emt 0:00:07]} 5. Ng3 {[%emt 0:00:12]} Bg6 {[%emt 0:00:11]} 6. Nh3 {
[%emt 0:01:15]} e6 {[%emt 0:02:00]} 7. Nf4 {[%emt 0:00:47]} Bd6 {[%emt 0:01:39]
} 8. Ngh5 {[%emt 0:02:30]} Kf8 {[%emt 0:09:25]} 9. Bc4 {[%emt 0:22:21]} Nf6 {
[%emt 0:03:55]} 10. O-O {[%emt 0:10:01]} Nxh5 {[%emt 0:02:56]} 11. Nxh5 {
[%emt 0:00:08]} Bxh2+ {[%emt 0:00:39]} 12. Kxh2 {[%emt 0:00:30]} Qh4+ {[%emt 0:
00:11]} 13. Kg1 {[%emt 0:00:02]} Bxh5 {[%emt 0:01:25]} 14. Qd2 {[%emt 0:05:49]}
c5 {[%emt 0:06:26]} 15. dxc5 {[%emt 0:06:35]} Nc6 {[%emt 0:02:19]} 16. Qd6+ {
[%emt 0:10:58]} Kg8 {[%emt 0:03:44]} 17. b3 {[%emt 0:16:37]} Rd8 {[%emt 0:00:
56]} 18. Qc7 {[%emt 0:00:30]} Nd4 {[%emt 0:34:45]} 19. Bb2 {[%emt 0:06:28]} h6
{[%emt 0:13:01]} 20. Qe5 {[%emt 0:11:07]} Rd5 {[%emt 0:01:57]} 21. Qb8+ {
[%emt 0:03:40]} Kh7 {[%emt 0:00:07]} 22. Qxh8+ {[%emt 0:00:52]} Kxh8 {[%emt 0:
00:08]} 23. Bxd4 {[%emt 0:00:33]} Rxd4 {[%emt 0:00:12]} 24. f3 {[%emt 0:00:33]}
Rd2 {[%emt 0:00:14]} 25. Rad1 {[%emt 0:00:26]} Qd4+ {[%emt 0:00:08]} 0-1

[Event "FIDE WYCC 2016 U16 girls"]
[Site "Khanty Mansiysk"]
[Date "2016.09.22"]
[Round "1.3"]
[White "Jakab, Kincso"]
[Black "Amina, Battsooj"]
[Result "1/2-1/2"]
[ECO "D05"]
[WhiteElo "1893"]
[BlackElo "2302"]
[Annotator "Reinhold Goldau"]
[PlyCount "87"]
[EventDate "2016.09.??"]
[EventType "swiss"]
[EventRounds "11"]
[EventCountry "RUS"]
[SourceTitle "Youth Database"]
[Source "CBase R.Goldau"]
[SourceDate "2000.03.01"]
[TimeControl "40/5400+30:1800+30"]

1. d4 {[%emt 0:00:00]} Nf6 {[%emt 0:00:00]} 2. Nf3 {[%emt 0:00:00]} d5 {
[%emt 0:00:00]} 3. e3 {[%emt 0:00:01]} e6 {[%emt 0:03:10]} 4. Bd3 {[%emt 0:00:
48]} c5 {[%emt 0:00:26]} 5. b3 {[%emt 0:00:25]} Nc6 {[%emt 0:01:14]} 6. Bb2 {
[%emt 0:00:39]} Be7 {[%emt 0:01:59]} 7. Nbd2 {[%emt 0:01:31]} O-O {[%emt 0:01:
02]} 8. O-O {[%emt 0:00:57]} b6 {[%emt 0:03:24]} 9. a3 {[%emt 0:03:08]} Bb7 {
[%emt 0:00:34]} 10. Ne5 {[%emt 0:03:18]} Nxe5 {[%emt 0:09:16]} 11. dxe5 {
[%emt 0:00:20]} Ne4 {[%emt 0:00:22]} 12. f4 {[%emt 0:04:56]} f6 {[%emt 0:04:24]
} 13. Nxe4 {[%emt 0:07:14]} dxe4 {[%emt 0:00:11]} 14. Bc4 {[%emt 0:00:18]} Bd5
{[%emt 0:03:39]} 15. Qe2 {[%emt 0:03:59]} Bxc4 {[%emt 0:03:22]} 16. Qxc4 {
[%emt 0:00:16]} Qd5 {[%emt 0:00:09]} 17. Rfd1 {[%emt 0:06:21]} Qxc4 {[%emt 0:
00:56]} 18. bxc4 {[%emt 0:00:09]} Kf7 {[%emt 0:04:06]} 19. Kf2 {[%emt 0:07:36]}
Rfd8 {[%emt 0:01:05]} 20. Ke2 {[%emt 0:01:08]} fxe5 {[%emt 0:02:40]} 21. Rf1 {
[%emt 0:10:24]} Kg6 {[%emt 0:03:11]} 22. Bxe5 {[%emt 0:02:22]} Bf6 {[%emt 0:00:
49]} 23. Bxf6 {[%emt 0:02:05]} Kxf6 {[%emt 0:01:59]} 24. a4 {[%emt 0:03:14]}
Rd6 {[%emt 0:02:51]} 25. Rad1 {[%emt 0:03:04]} Rad8 {[%emt 0:00:24]} 26. Rxd6 {
[%emt 0:01:12]} Rxd6 {[%emt 0:00:06]} 27. Rb1 {[%emt 0:01:03]} h5 {[%emt 0:10:
03]} 28. Rb5 {[%emt 0:05:08]} e5 {[%emt 0:01:47]} 29. fxe5+ {[%emt 0:04:32]}
Kxe5 {[%emt 0:00:13]} 30. a5 {[%emt 0:01:56]} Rg6 {[%emt 0:00:49]} 31. Kf2 {
[%emt 0:00:36]} Rf6+ {[%emt 0:00:44]} 32. Ke2 {[%emt 0:00:10]} Kf5 {[%emt 0:00:
37]} 33. axb6 {[%emt 0:09:05]} axb6 {[%emt 0:00:06]} 34. Rb1 {[%emt 0:00:10]}
Rd6 {[%emt 0:04:26]} 35. Rf1+ {[%emt 0:01:15]} Ke5 {[%emt 0:00:15]} 36. Ra1 {
[%emt 0:01:32]} g5 {[%emt 0:00:27]} 37. Ra8 {[%emt 0:01:52]} Kf5 {[%emt 0:03:
59]} 38. Re8 {[%emt 0:02:19]} Re6 {[%emt 0:00:33]} 39. Rd8 {[%emt 0:01:17]} Kf6
{[%emt 0:03:51]} 40. Rf8+ {[%emt 0:00:00]} Ke5 {[%emt 0:00:00]} 41. Rh8 {
[%emt 0:03:58]} h4 {[%emt 0:00:37]} 42. h3 {[%emt 0:01:47]} Rg6 {[%emt 0:00:58]
} 43. Re8+ {[%emt 0:01:12]} Re6 {[%emt 0:00:05]} 44. Rg8 {[%emt 0:00:34]}
1/2-1/2

[Event "FIDE WYCC 2016 U16 girls"]
[Site "Khanty Mansiysk"]
[Date "2016.09.22"]
[Round "1.4"]
[White "Martynkova, Olena"]
[Black "Kozybayeva, Alisa"]
[Result "1-0"]
[ECO "A13"]
[WhiteElo "2287"]
[BlackElo "1888"]
[Annotator "Reinhold Goldau"]
[PlyCount "59"]
[EventDate "2016.09.??"]
[EventType "swiss"]
[EventRounds "11"]
[EventCountry "RUS"]
[SourceTitle "Youth Database"]
[Source "CBase R.Goldau"]
[SourceDate "2000.03.01"]
[TimeControl "40/5400+30:1800+30"]

1. Nf3 {[%emt 0:00:00]} Nf6 {[%emt 0:00:00]} 2. g3 {[%emt 0:00:00]} d5 {
[%emt 0:00:43]} 3. Bg2 {[%emt 0:00:56]} e6 {[%emt 0:01:32]} 4. O-O {[%emt 0:01:
51]} c5 {[%emt 0:00:45]} 5. c4 {[%emt 0:02:06]} d4 {[%emt 0:10:51]} 6. e3 {
[%emt 0:05:54]} Nc6 {[%emt 0:02:55]} 7. exd4 {[%emt 0:02:10]} cxd4 {[%emt 0:00:
32]} 8. d3 {[%emt 0:00:38]} Bd6 {[%emt 0:04:29]} 9. b3 {[%emt 0:20:55]} O-O {
[%emt 0:08:33]} 10. Bb2 {[%emt 0:05:00]} e5 {[%emt 0:02:28]} 11. a3 {[%emt 0:
02:53]} a5 {[%emt 0:01:02]} 12. Nbd2 {[%emt 0:02:01]} Nd7 {[%emt 0:08:45]} 13.
Nh4 {[%emt 0:09:47]} Nc5 {[%emt 0:21:01]} 14. Ne4 {[%emt 0:07:44]} g5 {[%emt 0:
16:19]} 15. Nxc5 {[%emt 0:11:35]} Bxc5 {[%emt 0:00:32]} 16. Nf3 {[%emt 0:00:41]
} Bf5 {[%emt 0:12:10]} 17. h4 {[%emt 0:04:45]} h6 {[%emt 0:03:49]} 18. Re1 {
[%emt 0:03:28]} Bd6 {[%emt 0:00:38]} 19. Bc1 {[%emt 0:04:52]} f6 {[%emt 0:01:
00]} 20. hxg5 {[%emt 0:08:39]} hxg5 {[%emt 0:00:06]} 21. Nd2 {[%emt 0:01:25]}
Bxd3 {[%emt 0:00:46]} 22. Ne4 {[%emt 0:00:20]} Bxe4 {[%emt 0:00:11]} 23. Bxe4 {
[%emt 0:00:08]} Qe8 {[%emt 0:00:55]} 24. Kg2 {[%emt 0:02:52]} Kg7 {[%emt 0:00:
23]} 25. Rh1 {[%emt 0:00:48]} Rh8 {[%emt 0:00:16]} 26. Rxh8 {[%emt 0:00:58]}
Qxh8 {[%emt 0:00:03]} 27. Qg4 {[%emt 0:00:17]} Be7 {[%emt 0:01:43]} 28. Bd2 {
[%emt 0:00:31]} Qe8 {[%emt 0:00:44]} 29. Rh1 {[%emt 0:00:21]} Kg8 {[%emt 0:00:
34]} 30. Qe6+ {[%emt 0:00:25]} 1-0

[Event "FIDE WYCC 2016 U16 girls"]
[Site "Khanty Mansiysk"]
[Date "2016.09.24"]
[Round "3.1"]
[White "Yao, Lan"]
[Black "Broly, Mathilde"]
[Result "1-0"]
[ECO "C17"]
[WhiteElo "2235"]
[BlackElo "2046"]
[Annotator "Reinhold Goldau"]
[PlyCount "59"]
[EventDate "2016.09.??"]
[EventType "swiss"]
[EventRounds "11"]
[EventCountry "RUS"]
[SourceTitle "Youth Database"]
[Source "CBase R.Goldau"]
[SourceDate "2000.03.01"]
[TimeControl "40/5400+30:1800+30"]

1. e4 {[%emt 0:00:00]} e6 {[%emt 0:00:00]} 2. d4 {[%emt 0:00:00]} d5 {[%emt 0:
00:00]} 3. Nc3 {[%emt 0:00:00]} Bb4 {[%emt 0:00:21]} 4. e5 {[%emt 0:00:12]} c5
{[%emt 0:03:08]} 5. Bd2 {[%emt 0:01:18]} Ne7 {[%emt 0:00:57]} 6. Nb5 {[%emt 0:
00:14]} Bxd2+ {[%emt 0:00:13]} 7. Qxd2 {[%emt 0:00:02]} O-O {[%emt 0:00:19]} 8.
f4 {[%emt 0:00:23]} a6 {[%emt 0:00:39]} 9. Nd6 {[%emt 0:00:06]} cxd4 {[%emt 0:
00:24]} 10. Nf3 {[%emt 0:01:02]} Nec6 {[%emt 0:02:28]} 11. Bd3 {[%emt 0:03:45]}
h6 {[%emt 0:13:12]} 12. O-O {[%emt 0:04:09]} f6 {[%emt 0:01:40]} 13. Qe1 {
[%emt 0:23:22]} Nd7 {[%emt 0:35:59]} 14. Qg3 {[%emt 0:15:07]} fxe5 {[%emt 0:00:
25]} 15. fxe5 {[%emt 0:02:58]} Rxf3 {[%emt 0:02:21]} 16. gxf3 {[%emt 0:04:22]}
Ndxe5 {[%emt 0:00:13]} 17. Nxc8 {[%emt 0:00:08]} Rxc8 {[%emt 0:00:46]} 18. Kh1
{[%emt 0:00:49]} Nxd3 {[%emt 0:09:05]} 19. cxd3 {[%emt 0:00:08]} Qf6 {[%emt 0:
00:09]} 20. Rae1 {[%emt 0:11:40]} Rd8 {[%emt 0:10:53]} 21. Re2 {[%emt 0:13:03]}
e5 {[%emt 0:08:07]} 22. f4 {[%emt 0:03:02]} Rf8 {[%emt 0:02:45]} 23. f5 {
[%emt 0:01:41]} Re8 {[%emt 0:01:40]} 24. Qf3 {[%emt 0:02:59]} Rd8 {[%emt 0:00:
17]} 25. Rg2 {[%emt 0:02:20]} Kh7 {[%emt 0:04:15]} 26. Rg6 {[%emt 0:01:37]} Qf8
{[%emt 0:01:35]} 27. Rfg1 {[%emt 0:01:42]} Rd7 {[%emt 0:00:16]} 28. f6 {
[%emt 0:00:44]} gxf6 {[%emt 0:01:01]} 29. Rxf6 {[%emt 0:00:43]} Qe8 {[%emt 0:
00:13]} 30. Qf5+ {[%emt 0:00:10]} 1-0

[Event "FIDE WYCC 2016 U16 girls"]
[Site "Khanty Mansiysk"]
[Date "2016.09.24"]
[Round "3.2"]
[White "Kochukova, Anna"]
[Black "Kazarian, Anna Maja"]
[Result "0-1"]
[ECO "C01"]
[WhiteElo "2073"]
[BlackElo "2231"]
[Annotator "Reinhold Goldau"]
[PlyCount "104"]
[EventDate "2016.09.??"]
[EventType "swiss"]
[EventRounds "11"]
[EventCountry "RUS"]
[SourceTitle "Youth Database"]
[Source "CBase R.Goldau"]
[SourceDate "2000.03.01"]
[TimeControl "40/5400+30:1800+30"]

1. e4 {[%emt 0:00:00]} e6 {[%emt 0:00:00]} 2. c4 {[%emt 0:00:00]} d5 {[%emt 0:
00:00]} 3. exd5 {[%emt 0:00:00]} exd5 {[%emt 0:00:00]} 4. cxd5 {[%emt 0:00:00]}
Nf6 {[%emt 0:00:24]} 5. Nc3 {[%emt 0:00:00]} Nxd5 {[%emt 0:02:55]} 6. Nf3 {
[%emt 0:00:15]} c6 {[%emt 0:06:59]} 7. d4 {[%emt 0:04:34]} Be7 {[%emt 0:09:02]}
8. Bd3 {[%emt 0:00:16]} Be6 {[%emt 0:03:11]} 9. O-O {[%emt 0:00:24]} Nd7 {
[%emt 0:00:34]} 10. Re1 {[%emt 0:01:05]} h6 {[%emt 0:11:21]} 11. a3 {[%emt 0:
05:12]} O-O {[%emt 0:05:36]} 12. Ne4 {[%emt 0:00:23]} Qc7 {[%emt 0:06:35]} 13.
Bd2 {[%emt 0:15:47]} Rad8 {[%emt 0:03:47]} 14. Rc1 {[%emt 0:02:21]} N7f6 {
[%emt 0:01:37]} 15. Ng3 {[%emt 0:07:11]} Rfe8 {[%emt 0:04:18]} 16. Bb1 {
[%emt 0:04:54]} Bg4 {[%emt 0:10:40]} 17. h3 {[%emt 0:03:29]} Bxf3 {[%emt 0:00:
04]} 18. Qxf3 {[%emt 0:00:13]} Bd6 {[%emt 0:02:51]} 19. Nf5 {[%emt 0:12:30]}
Bf4 {[%emt 0:01:45]} 20. Bxf4 {[%emt 0:04:27]} Qxf4 {[%emt 0:00:09]} 21. Qxf4 {
[%emt 0:04:00]} Nxf4 {[%emt 0:00:07]} 22. Kf1 {[%emt 0:00:28]} Rxe1+ {[%emt 0:
03:19]} 23. Rxe1 {[%emt 0:01:24]} g6 {[%emt 0:00:03]} 24. Nxh6+ {[%emt 0:04:53]
} Kg7 {[%emt 0:00:05]} 25. Ng4 {[%emt 0:00:21]} Nxg4 {[%emt 0:00:05]} 26. hxg4
{[%emt 0:00:13]} Rxd4 {[%emt 0:00:05]} 27. g3 {[%emt 0:03:26]} Nd5 {[%emt 0:00:
17]} 28. Re4 {[%emt 0:02:47]} Rxe4 {[%emt 0:04:05]} 29. Bxe4 {[%emt 0:00:02]}
Kf6 {[%emt 0:00:48]} 30. Ke2 {[%emt 0:01:24]} Ke5 {[%emt 0:00:06]} 31. Kd3 {
[%emt 0:01:03]} g5 {[%emt 0:00:43]} 32. Bf5 {[%emt 0:02:30]} Ne7 {[%emt 0:01:
22]} 33. Be4 {[%emt 0:01:57]} a5 {[%emt 0:09:05]} 34. b3 {[%emt 0:02:40]} b5 {
[%emt 0:00:16]} 35. Bf3 {[%emt 0:02:38]} Nd5 {[%emt 0:00:44]} 36. Bd1 {[%emt 0:
03:17]} c5 {[%emt 0:02:44]} 37. a4 {[%emt 0:05:44]} bxa4 {[%emt 0:02:16]} 38.
bxa4 {[%emt 0:00:06]} Nb6 {[%emt 0:00:03]} 39. Bb3 {[%emt 0:03:42]} f6 {
[%emt 0:00:04]} 40. Bc2 {[%emt 0:00:00]} c4+ {[%emt 0:00:00]} 41. Kc3 {[%emt 0:
09:03]} Kd5 {[%emt 0:00:36]} 42. f4 {[%emt 0:00:16]} Kc5 {[%emt 0:00:12]} 43.
fxg5 {[%emt 0:00:39]} fxg5 {[%emt 0:00:09]} 44. Bd1 {[%emt 0:02:54]} Nd5+ {
[%emt 0:00:08]} 45. Kd2 {[%emt 0:00:21]} Kd4 {[%emt 0:01:41]} 46. Bc2 {[%emt 0:
02:16]} Nc3 {[%emt 0:04:04]} 47. Kc1 {[%emt 0:06:47]} Ke3 {[%emt 0:00:25]} 48.
Kb2 {[%emt 0:00:49]} Kd2 {[%emt 0:00:05]} 49. Ka3 {[%emt 0:01:30]} Nd5 {
[%emt 0:00:59]} 50. Kb2 {[%emt 0:03:59]} Nb4 {[%emt 0:00:32]} 51. Bb1 {[%emt 0:
01:39]} Nd3+ {[%emt 0:01:19]} 52. Ka3 {[%emt 0:01:25]} Nc5 {[%emt 0:00:05]} 0-1

[Event "FIDE WYCC 2016 U16 girls"]
[Site "Khanty Mansiysk"]
[Date "2016.09.24"]
[Round "3.3"]
[White "Aakanksha, Hagawane"]
[Black "Hrescak, Ivana"]
[Result "1/2-1/2"]
[ECO "B31"]
[WhiteElo "2183"]
[BlackElo "1957"]
[Annotator "Reinhold Goldau"]
[PlyCount "99"]
[EventDate "2016.09.??"]
[EventType "swiss"]
[EventRounds "11"]
[EventCountry "RUS"]
[SourceTitle "Youth Database"]
[Source "CBase R.Goldau"]
[SourceDate "2000.03.01"]
[TimeControl "40/5400+30:1800+30"]

1. e4 {[%emt 0:00:00]} c5 {[%emt 0:00:00]} 2. Nc3 {[%emt 0:00:00]} Nc6 {
[%emt 0:00:00]} 3. Bb5 {[%emt 0:00:00]} Nd4 {[%emt 0:01:14]} 4. Nf3 {[%emt 0:
00:10]} g6 {[%emt 0:04:06]} 5. Nxd4 {[%emt 0:09:10]} cxd4 {[%emt 0:01:35]} 6.
Ne2 {[%emt 0:00:07]} Bg7 {[%emt 0:02:19]} 7. O-O {[%emt 0:01:03]} e6 {[%emt 0:
03:10]} 8. c3 {[%emt 0:05:46]} a6 {[%emt 0:04:56]} 9. Bd3 {[%emt 0:02:37]} dxc3
{[%emt 0:05:19]} 10. dxc3 {[%emt 0:02:33]} d5 {[%emt 0:02:36]} 11. Ng3 {
[%emt 0:09:03]} h5 {[%emt 0:06:23]} 12. exd5 {[%emt 0:04:50]} Qxd5 {[%emt 0:02:
00]} 13. Ne4 {[%emt 0:00:21]} Bd7 {[%emt 0:07:51]} 14. c4 {[%emt 0:07:51]} Qc6
{[%emt 0:03:04]} 15. Bf4 {[%emt 0:04:47]} e5 {[%emt 0:04:36]} 16. Bg5 {[%emt 0:
09:29]} f5 {[%emt 0:09:59]} 17. Nc3 {[%emt 0:05:50]} Be6 {[%emt 0:06:07]} 18.
Re1 {[%emt 0:02:35]} Nh6 {[%emt 0:04:31]} 19. Bxh6 {[%emt 0:10:07]} Rxh6 {
[%emt 0:00:30]} 20. Be2 {[%emt 0:00:41]} Kf7 {[%emt 0:06:29]} 21. Rc1 {[%emt 0:
01:48]} h4 {[%emt 0:02:29]} 22. Nd5 {[%emt 0:05:55]} h3 {[%emt 0:01:55]} 23. g3
{[%emt 0:00:31]} Rd8 {[%emt 0:02:02]} 24. Qd2 {[%emt 0:00:40]} Rhh8 {[%emt 0:
03:06]} 25. Qb4 {[%emt 0:03:08]} Rd7 {[%emt 0:03:04]} 26. Red1 {[%emt 0:00:54]}
Bh6 {[%emt 0:01:09]} 27. Rc3 {[%emt 0:01:10]} Bf8 {[%emt 0:01:20]} 28. Qb3 {
[%emt 0:00:26]} Bc5 {[%emt 0:00:51]} 29. Bf3 {[%emt 0:03:08]} e4 {[%emt 0:01:
44]} 30. Be2 {[%emt 0:00:20]} g5 {[%emt 0:01:37]} 31. Qc2 {[%emt 0:00:27]} Ba7
{[%emt 0:02:40]} 32. b4 {[%emt 0:01:59]} Rc8 {[%emt 0:01:25]} 33. Rc1 {[%emt 0:
02:05]} Bd4 {[%emt 0:00:23]} 34. Bh5+ {[%emt 0:02:49]} Kf8 {[%emt 0:02:41]} 35.
Ne3 {[%emt 0:02:57]} f4 {[%emt 0:02:26]} 36. Bg6 {[%emt 0:01:56]} fxe3 {
[%emt 0:01:21]} 37. fxe3 {[%emt 0:00:10]} Bxc3 {[%emt 0:00:51]} 38. Qxc3 {
[%emt 0:00:01]} Kg8 {[%emt 0:00:27]} 39. Qe5 {[%emt 0:00:22]} Bf7 {[%emt 0:00:
39]} 40. Bxe4 {[%emt 0:00:00]} Qe6 {[%emt 0:00:00]} 41. Qxg5+ {[%emt 0:00:23]}
Kf8 {[%emt 0:04:41]} 42. Bf5 {[%emt 0:01:35]} Qc6 {[%emt 0:07:03]} 43. e4 {
[%emt 0:02:41]} Qb6+ {[%emt 0:08:37]} 44. c5 {[%emt 0:00:24]} Qxb4 {[%emt 0:01:
12]} 45. Qh6+ {[%emt 0:00:41]} Ke7 {[%emt 0:01:24]} 46. Qh4+ {[%emt 0:00:20]}
Kf8 {[%emt 0:03:21]} 47. Qh8+ {[%emt 0:00:14]} Ke7 {[%emt 0:05:15]} 48. Qh4+ {
[%emt 0:07:45]} Kf8 {[%emt 0:00:19]} 49. Qh8+ {[%emt 0:04:25]} Ke7 {[%emt 0:00:
05]} 50. Qh4+ {[%emt 0:00:06]} 1/2-1/2

[Event "FIDE WYCC 2016 U16 girls"]
[Site "Khanty Mansiysk"]
[Date "2016.09.24"]
[Round "3.4"]
[White "Simakova, Elena"]
[Black "Vazquez Maccarini, Danitza"]
[Result "0-1"]
[ECO "B30"]
[WhiteElo "1860"]
[BlackElo "2142"]
[Annotator "Reinhold Goldau"]
[PlyCount "112"]
[EventDate "2016.09.??"]
[EventType "swiss"]
[EventRounds "11"]
[EventCountry "RUS"]
[SourceTitle "Youth Database"]
[Source "CBase R.Goldau"]
[SourceDate "2000.03.01"]
[TimeControl "40/5400+30:1800+30"]

1. e4 {[%emt 0:00:00]} c5 {[%emt 0:00:00]} 2. Nf3 {[%emt 0:00:00]} Nc6 {
[%emt 0:00:15]} 3. Bb5 {[%emt 0:01:12]} Nd4 {[%emt 0:00:20]} 4. Bc4 {[%emt 0:
12:21]} e6 {[%emt 0:01:13]} 5. Nc3 {[%emt 0:02:57]} Nf6 {[%emt 0:01:33]} 6. e5
{[%emt 0:08:48]} Ng4 {[%emt 0:00:57]} 7. Nxd4 {[%emt 0:02:27]} Nxe5 {[%emt 0:
00:23]} 8. Nxe6 {[%emt 0:01:40]} dxe6 {[%emt 0:00:27]} 9. Bb5+ {[%emt 0:00:21]}
Bd7 {[%emt 0:00:13]} 10. Bxd7+ {[%emt 0:00:47]} Qxd7 {[%emt 0:00:11]} 11. d3 {
[%emt 0:01:50]} Be7 {[%emt 0:02:53]} 12. Bf4 {[%emt 0:03:42]} Ng6 {[%emt 0:02:
54]} 13. Bg3 {[%emt 0:07:26]} Qc6 {[%emt 0:08:57]} 14. O-O {[%emt 0:04:28]} O-O
{[%emt 0:03:18]} 15. Qh5 {[%emt 0:08:06]} Rad8 {[%emt 0:11:12]} 16. Rad1 {
[%emt 0:07:36]} b5 {[%emt 0:09:11]} 17. b3 {[%emt 0:09:28]} f5 {[%emt 0:10:08]}
18. f4 {[%emt 0:02:01]} c4 {[%emt 0:06:05]} 19. Qf3 {[%emt 0:06:17]} Bc5+ {
[%emt 0:09:18]} 20. Kh1 {[%emt 0:01:16]} Qxf3 {[%emt 0:02:34]} 21. Rxf3 {
[%emt 0:00:33]} cxb3 {[%emt 0:00:56]} 22. axb3 {[%emt 0:01:12]} b4 {[%emt 0:00:
46]} 23. Ne2 {[%emt 0:01:37]} Rc8 {[%emt 0:01:32]} 24. d4 {[%emt 0:01:54]} Bd6
{[%emt 0:02:15]} 25. Rc1 {[%emt 0:03:50]} Rc7 {[%emt 0:02:52]} 26. c4 {[%emt 0:
01:52]} bxc3 {[%emt 0:00:27]} 27. Rfxc3 {[%emt 0:00:08]} Rb7 {[%emt 0:04:10]}
28. Rc6 {[%emt 0:03:06]} Rd8 {[%emt 0:00:44]} 29. R1c3 {[%emt 0:00:40]} Ne7 {
[%emt 0:00:28]} 30. R6c4 {[%emt 0:01:39]} Rdb8 {[%emt 0:01:44]} 31. Nc1 {
[%emt 0:01:15]} Nd5 {[%emt 0:01:11]} 32. Rf3 {[%emt 0:00:32]} Ba3 {[%emt 0:00:
35]} 33. h3 {[%emt 0:03:27]} Bxc1 {[%emt 0:00:34]} 34. Rxc1 {[%emt 0:00:04]}
Rxb3 {[%emt 0:00:15]} 35. Rc8+ {[%emt 0:01:04]} Rxc8 {[%emt 0:05:59]} 36. Rxb3
{[%emt 0:00:04]} a6 {[%emt 0:01:39]} 37. Kg1 {[%emt 0:01:19]} Kf7 {[%emt 0:03:
33]} 38. Kf2 {[%emt 0:00:48]} Nc3 {[%emt 0:00:47]} 39. Ke3 {[%emt 0:00:46]} Nb5
{[%emt 0:00:18]} 40. Be1 {[%emt 0:00:00]} Rc2 {[%emt 0:00:00]} 41. g3 {[%emt 0:
02:27]} Re2+ {[%emt 0:02:00]} 42. Kxe2 {[%emt 0:00:08]} Nxd4+ {[%emt 0:00:09]}
43. Kd3 {[%emt 0:00:31]} Nxb3 {[%emt 0:00:05]} 44. Kc4 {[%emt 0:14:34]} Nc1 {
[%emt 0:00:20]} 45. Kc3 {[%emt 0:01:03]} Ne2+ {[%emt 0:06:20]} 46. Kd3 {
[%emt 0:00:10]} Ng1 {[%emt 0:00:21]} 47. h4 {[%emt 0:00:35]} Nf3 {[%emt 0:00:
08]} 48. Bc3 {[%emt 0:03:00]} e5 {[%emt 0:01:07]} 49. fxe5 {[%emt 0:02:14]} Ke6
{[%emt 0:00:19]} 50. Ke3 {[%emt 0:01:02]} Nh2 {[%emt 0:08:44]} 51. Kf4 {
[%emt 0:03:59]} g6 {[%emt 0:02:22]} 52. Kg5 {[%emt 0:04:18]} Ng4 {[%emt 0:04:
07]} 53. Kf4 {[%emt 0:00:21]} h6 {[%emt 0:00:25]} 54. h5 {[%emt 0:02:47]} g5+ {
[%emt 0:04:11]} 55. Kf3 {[%emt 0:00:04]} Nxe5+ {[%emt 0:00:07]} 56. Ke2 {
[%emt 0:00:12]} Ng4 {[%emt 0:00:09]} 0-1

[Event "FIDE WYCC 2016 U18 boys"]
[Site "Khanty Mansiysk"]
[Date "2016.09.22"]
[Round "1.1"]
[White "Vavulin, Maksim"]
[Black "Vaishali, R."]
[Result "1-0"]
[ECO "B90"]
[WhiteElo "2582"]
[BlackElo "2295"]
[Annotator "Reinhold Goldau"]
[PlyCount "69"]
[EventDate "2016.09.??"]
[EventType "swiss"]
[EventRounds "11"]
[EventCountry "RUS"]
[SourceTitle "Youth Database"]
[Source "CBase R.Goldau"]
[SourceDate "2000.03.01"]
[TimeControl "40/5400+30:1800+30"]

1. e4 {[%emt 0:00:00]} c5 {[%emt 0:00:15]} 2. Nf3 {[%emt 0:00:00]} d6 {[%emt 0:
00:06]} 3. d4 {[%emt 0:00:01]} cxd4 {[%emt 0:00:06]} 4. Nxd4 {[%emt 0:00:06]}
Nf6 {[%emt 0:00:05]} 5. Nc3 {[%emt 0:00:11]} a6 {[%emt 0:00:04]} 6. Rg1 {
[%emt 0:02:18]} e5 {[%emt 0:03:21]} 7. Nb3 {[%emt 0:00:35]} Be6 {[%emt 0:02:48]
} 8. g4 {[%emt 0:01:03]} Nc6 {[%emt 0:17:03]} 9. g5 {[%emt 0:00:33]} Nd7 {
[%emt 0:00:06]} 10. Be3 {[%emt 0:00:54]} Rc8 {[%emt 0:02:51]} 11. Nd5 {[%emt 0:
11:07]} Be7 {[%emt 0:08:39]} 12. Qd2 {[%emt 0:01:55]} O-O {[%emt 0:07:21]} 13.
O-O-O {[%emt 0:02:12]} f5 {[%emt 0:09:53]} 14. Bh3 {[%emt 0:03:14]} Nc5 {
[%emt 0:15:43]} 15. Nxe7+ {[%emt 0:19:07]} Qxe7 {[%emt 0:02:10]} 16. exf5 {
[%emt 0:00:35]} Bxf5 {[%emt 0:03:15]} 17. Qd5+ {[%emt 0:01:02]} Kh8 {[%emt 0:
03:19]} 18. Bxf5 {[%emt 0:00:17]} Rxf5 {[%emt 0:01:38]} 19. Qxd6 {[%emt 0:01:
51]} Qxd6 {[%emt 0:02:32]} 20. Rxd6 {[%emt 0:00:07]} Ne4 {[%emt 0:00:12]} 21.
Rd7 {[%emt 0:06:24]} Nb4 {[%emt 0:03:42]} 22. c3 {[%emt 0:02:18]} Nxf2 {
[%emt 0:02:38]} 23. Nc5 {[%emt 0:05:04]} b6 {[%emt 0:07:23]} 24. Ne6 {[%emt 0:
01:34]} g6 {[%emt 0:04:09]} 25. h4 {[%emt 0:06:27]} Rf3 {[%emt 0:02:14]} 26.
Kd2 {[%emt 0:00:58]} Ne4+ {[%emt 0:00:50]} 27. Ke2 {[%emt 0:00:19]} Rh3 {
[%emt 0:00:24]} 28. cxb4 {[%emt 0:01:13]} Rc2+ {[%emt 0:00:36]} 29. Kd1 {
[%emt 0:01:06]} Rc8 {[%emt 0:00:13]} 30. Bxb6 {[%emt 0:00:59]} Rh2 {[%emt 0:00:
23]} 31. Bc7 {[%emt 0:00:35]} Nf2+ {[%emt 0:00:56]} 32. Ke1 {[%emt 0:00:26]}
Kg8 {[%emt 0:00:12]} 33. Rf1 {[%emt 0:01:12]} Ne4 {[%emt 0:00:44]} 34. Rg7+ {
[%emt 0:01:31]} Kh8 {[%emt 0:00:02]} 35. Rgf7 {[%emt 0:00:09]} 1-0